Cogmind - Beta 17.1 @@@ ROGUE MODE // 2026.09.24 @ 12:33:36 Player: Nika Jay Result: Destroyed by Golem with Assembled Focal Cannon Performance ------------- Evolutions (3) 1500 Regions Visited (10) 2000 Robots Destroyed (124) 620 Value Destroyed (2737) 2737 Prototype IDs (10) 200 Alien Tech Used (0) 0 Bonus (406) 406 TOTAL SCORE: 7463 Bonus ------- High Alert Combat Kills 182 Follower Combat Kills 286 Met Imprinter 300 Friendly Fire -362 Cogmind --------- Core Integrity 0/700 Matter 280/300 Energy 100/100 System Corruption 0% Temperature Cool (12) Movement Core (50) Location -7/Deep Caves Parts ------- > --- POWER (1) -------- (None) > --- PROPULSION (5) --- Spiked Medium Treads > --- UTILITY (5) ------ (None) > --- WEAPON (2) ------- CR-A16's Pointy Stick > --- INVENTORY (5) ---- Mini Grenade Launcher Mini Grenade Launcher Heavy Hammer Makeshift Hammer Makeshift Hammer Peak State ------------ > --- POWER ------------ Improved Deuterium Engine > --- PROPULSION ------- Aluminum Leg Aluminum Leg Aluminum Leg Carbon-fiber Leg Carbon-fiber Leg > --- UTILITY ---------- Large Storage Unit Seismic Detector Hardened Light Armor Plating Sensor Drone Bay > --- WEAPON ----------- Advanced Beam Cannon Makeshift Hammer > --- INVENTORY -------- Improved Deuterium Engine Improved Deuterium Engine Compact Wheel Compact Wheel Advanced Beam Cannon Advanced Beam Cannon Advanced Beam Cannon Advanced Beam Cannon Mini Grenade Launcher Mini Grenade Launcher Mini Grenade Launcher Plasma Cutter Heavy Hammer Heavy Hammer Heavy Mace [Rating: 35] Favorites ----------- Power Ion Engine Engine Ion Engine Propulsion Aluminum Leg Treads Spiked Medium Treads Leg Aluminum Leg Hover Unit Backup Propulsion III Utility Large Storage Unit Device Seismic Detector Storage Large Storage Unit Protection Hardened Light Armor Plating Weapon Makeshift Hammer Energy Gun Heavy EM Pulse Gun Energy Cannon Advanced Beam Cannon Ballistic Gun Assault Rifle Ballistic Cannon Slug Cannon Launcher Mini Grenade Launcher Special Weapon Plasma Cutter Impact Weapon Makeshift Hammer Piercing Weapon CR-A16's Pointy Stick Special Melee Weapon Datajack Build | -11 -10 -10 -9 -9 -9 -7 -7 -7 -7 -7 ------- Run | Yrd Mat Min Mat Sto Rec Fac Low Low Zio Dee Slots Evolved 6 | . . . 2 . . 4 . . . . Power . | . . . . . . . . . . . Propulsion 3 | . . . 2 . . 1 . . . . Utility 3 | . . . . . . 3 . . . . Weapon . | . . . . . . . . . . . Parts Attached 82 | 7 6 2 25 20 4 2 3 1 12 . Power 9 | 1 . . 4 2 1 1 . . . . Engine 9 | 1 . . 4 2 1 1 . . . . Core . | . . . . . . . . . . . Reactor . | . . . . . . . . . . . Propulsion 26 | 2 2 1 8 4 3 . 2 . 4 . Treads 4 | . . . . 1 . . . . 3 . Leg 22 | 2 2 1 8 3 3 . 2 . 1 . Wheel . | . . . . . . . . . . . Hover . | . . . . . . . . . . . Flight . | . . . . . . . . . . . Utility 17 | 2 2 1 4 4 . 1 1 . 2 . Device 3 | 1 . 1 . . . 1 . . . . Storage 2 | 1 1 . . . . . . . . . Processor . | . . . . . . . . . . . Hackware . | . . . . . . . . . . . Protection 12 | . 1 . 4 4 . . 1 . 2 . Artifact . | . . . . . . . . . . . Weapon 30 | 2 2 . 9 10 . . . 1 6 . Energy Gun 8 | 1 . . 6 1 . . . . . . Energy Cannon 2 | . . . . 1 . . . . 1 . Ballistic Gun 4 | 1 . . 2 1 . . . . . . Ballistic Cannon 1 | . . . . . . . . . 1 . Launcher 8 | . 1 . . 6 . . . . 1 . Special Weapon 1 | . . . . . . . . . 1 . Impact Weapon 4 | . 1 . 1 1 . . . 1 . . Slashing Weapon . | . . . . . . . . . . . Piercing Weapon 1 | . . . . . . . . . 1 . Special Melee Weapon 1 | . . . . . . . . . 1 . Unidentified Prototypes 6 | . . 1 4 1 . . . . . . Corrupted Parts 1 | . . . . . . . 1 . . . System Corruption 6 | . . . . . . . 6 . . . Parts Lost 23 | . . . 1 8 3 . 6 1 . 4 Power . | . . . . . . . . . . . Propulsion 16 | . . . . 5 1 . 5 1 . 4 Utility 5 | . . . 1 1 2 . 1 . . . Weapon 2 | . . . . 2 . . . . . . Highest Loss Streak 4 | . . . 1 3 2 . 4 1 . 4 To Critical Strikes . | . . . . . . . . . . . Average Backups 10 | . 7 12 14 14 14 14 13 5 5 4 Power . | . . . . . 1 1 1 . . . Propulsion 1 | . 1 3 2 1 1 2 1 . . . Utility 1 | . 2 2 3 2 2 . . . . . Weapon 6 | . 3 6 7 9 9 9 9 3 4 4 Tool/Special . | . . . . . . . . . . . Unused Backups 27 | . 2 . 8 5 . . 10 . . 2 Power 2 | . . . . . . . 2 . . . Propulsion 3 | . . . 1 . . . 2 . . . Utility 2 | . 2 . . . . . . . . . Weapon 20 | . . . 7 5 . . 6 . . 2 Tool/Special . | . . . . . . . . . . . Average Slot Usage (%) 77 | . 100 100 98 93 100 76 75 18 48 39 Engine 7 | . 14 14 11 11 11 7 6 . . . Treads 7 | . . . . . 6 . . . 18 19 Leg 24 | . 28 28 43 37 37 30 27 6 3 4 Hover 3 | . . . . . . . . . 10 6 Device 1 | . 3 . . . . 7 12 . . . Storage 7 | . 14 14 11 11 11 7 6 . . . Protection 8 | . 10 14 9 11 11 7 6 . 4 . Energy Gun 2 | . 1 . 8 7 . . . . . . Energy Cannon 2 | . . . . . 11 7 6 . . . Ballistic Gun 2 | . 14 14 2 1 . . . . . . Impact Weapon 8 | . 11 14 11 9 11 7 7 10 3 . Piercing Weapon 1 | . . . . . . . . . 4 7 Peak Build Rating 35 | 7 10 17 21 23 21 32 35 12 34 26 Average Rating 19 | 5 9 10 16 18 19 25 30 9 23 21 On Entrance 14 | . 7 10 12 21 18 21 32 8 5 24 Avg Prop Armor Cover (%) 20 | . . . . 7 7 . 25 23 19 44 Naked Turns . | . . . . . . . . . . . Heaviest Build 57 | 15 35 35 39 41 39 57 57 6 16 3 Greatest Support 76 | 20 20 20 49 49 45 45 60 3 76 3 Greatest Overweight (x) 1 | 1 1 1 . 1 1 1 1 1 . . Average Overweight (x) . | . . 1 . . . . . . . . Largest Inventory Capacity 15 | 8 15 15 15 15 15 15 15 5 5 5 Average Capacity 10 | 7 9 15 15 15 15 15 13 5 5 5 Most Carried 15 | 1 10 15 15 15 15 15 15 5 5 5 Average Carried 10 | . 7 12 14 14 14 14 13 4 4 4 Final Capacity 15 | 8 15 15 15 15 15 15 5 5 5 5 Final Carried 15 | 1 10 15 14 15 15 15 5 5 5 5 Class Distribution -------------------- 57% | Mutant 27% | Scavenger-Mutant 10% | Derelict-Mutant 4% | Commander-Mutant Dominant Class ---------------- Mutant | -10/Materials Mutant | -10/Mines Mutant | -9/Materials Scavenger-Mutant | -9/Storage Scavenger-Mutant | -9/Recycling Scavenger-Mutant | -7/Factory Scavenger-Mutant | -7/Lower Caves Mutant | -7/Lower Caves Mutant | -7/Zion Mutant | -7/Deep Caves Resources | -11 -10 -10 -9 -9 -9 -7 -7 -7 -7 -7 ----------- Run | Yrd Mat Min Mat Sto Rec Fac Low Low Zio Dee Matter Collected 1633 | 274 142 38 366 368 100 30 168 17 130 . Remotely . | . . . . . . . . . . . Salvage Created 4269 | 75 406 148 967 1202 1315 . 143 . . 13 Parts 170 | 11 16 7 39 55 36 . 6 . . . Haulers Intercepted 8 | . . . 4 4 . . . . . . Recyclers Shooed 9 | 2 1 . 1 1 4 . . . . . Parts Field Recycled . | . . . . . . . . . . . Retrieved Matter . | . . . . . . . . . . . Parts Self-Destructed 11 | . . . . . . . 9 . 2 . Prevented . | . . . . . . . . . . . Parts Restored . | . . . . . . . . . . . Kills | -11 -10 -10 -9 -9 -9 -7 -7 -7 -7 -7 ------- Run | Yrd Mat Min Mat Sto Rec Fac Low Low Zio Dee Combat Hostiles Destroyed 77 | . 10 2 17 29 12 . 4 . . 3 Melee 12 | . 5 2 3 1 . . . . . 1 Guns 11 | . 1 . 5 5 . . . . . . Cannons 8 | . . . . 1 7 . . . . . AOE 37 | . 2 . 8 17 4 . 4 . . 2 Classes Destroyed 18 | 1 4 1 4 4 3 . . . . 1 Worker 6 | . . 1 2 2 1 . . . . . Builder 3 | . 1 . 2 . . . . . . . Tunneler 9 | 3 2 2 1 . 1 . . . . . Hauler 8 | . . . 4 4 . . . . . . Recycler 14 | . 1 . 2 1 10 . . . . . Mechanic 1 | . . . . 1 . . . . . . Operator 1 | . . . . 1 . . . . . . Watcher 4 | . . . 3 1 . . . . . . Swarmer 23 | . 3 . 8 8 . . 4 . . . Grunt 23 | . 7 2 3 9 2 . . . . . Brawler 3 | . . . 1 2 . . . . . . Duelist 1 | . . . . 1 . . . . . . Protector 3 | . . . . 1 2 . . . . . Sentry 16 | . . . 5 8 2 . 1 . . . Demolisher 1 | . . . . . 1 . . . . . Hunter 3 | . . . . . 3 . . . . . Programmer 3 | . . . . . 3 . . . . . Packrat 1 | . . . . . . . 1 . . . Assembled 3 | . . . . . . . . . . 3 Thug 2 | . . . . 2 . . . . . . Best Kill Streak 10 | 3 5 2 5 10 6 . 4 . . 2 Combat Bots Only 10 | . 3 2 4 10 5 . 4 . . 2 Max Kills in Single Turn 5 | 1 2 1 3 4 5 . 2 . . 1 Gunslinging . | . . . . . . . . . . . Exploded 4 | . 2 . 3 3 4 . 2 . . 1 Melee 1 | . 1 1 1 1 . . . . . 1 Uniques/NPCs Destroyed . | . . . . . . . . . . . Combat | -11 -10 -10 -9 -9 -9 -7 -7 -7 -7 -7 -------- Run | Yrd Mat Min Mat Sto Rec Fac Low Low Zio Dee Hostile Shots Fired 429 | . 42 17 75 84 43 . 80 21 . 67 Missed 136 | . 12 4 24 19 12 . 32 8 . 25 Hits 293 | . 30 13 51 65 31 . 48 13 . 42 Melee 7 | . . . . 6 . . . . . 1 Projectile 286 | . 30 13 51 59 31 . 48 13 . 41 AOE 5 | . . . . . 5 . . . . . Critical Strikes 7 | . . . 3 3 1 . . . . . Damage Taken 5872 | . 311 194 835 1289 583 . 1046 201 . 1413 Core 1149 | . 86 23 42 205 85 . 152 166 . 390 Absorbed by Shields 19 | . . . . 16 3 . . . . . Regen/Repaired (Parts) 80 | . . . . 78 . . . . 2 . Core Remaining (%) 57 | 100 . 56 . . 17 . . . . . Volleys Fired 171 | 14 7 . 40 44 41 . 22 . . 3 Largest 2 | 2 1 . 1 1 1 . 1 . . 1 Hottest 70 | 70 30 . 45 68 68 . 68 . . 30 Shots Fired 184 | 27 7 . 40 44 41 . 22 . . 3 Gun 99 | 27 6 . 35 31 . . . . . . Cannon 60 | . . . . 2 40 . 18 . . . Launcher 25 | . 1 . 5 11 1 . 4 . . 3 Special . | . . . . . . . . . . . Kinetic 22 | 14 6 . 1 1 . . . . . . Thermal 73 | 13 . . . 2 40 . 18 . . . Explosive 25 | . 1 . 5 11 1 . 4 . . 3 Electromagnetic 64 | . . . 34 30 . . . . . . Robot Hit Streak 12 | 3 5 . 12 9 10 . 6 . . 2 Robot Miss Streak 6 | 6 2 . 2 3 2 . 3 . . . Penetration Max . | . . . . . . . . . . . Secondary Targets . | . . . . . . . . . . . Shots Hit Robots 233 | 10 26 7 73 60 41 . 10 . 3 3 Core Hits 131 | 3 8 4 27 52 22 . 9 . . 6 Critical Kills 7 | . 2 1 1 1 2 . . . . . Critical Parts Destroyed 12 | . 3 . 6 2 1 . . . . . Critical Strikes 21 | 1 5 1 7 4 3 . . . . . Burn 1 | 1 . . . . . . . . . . Meltdown 2 | . . . . . 2 . . . . . Smash 18 | . 5 1 7 4 1 . . . . . Melee Attacks 131 | . 27 10 51 24 9 . 3 2 3 2 Impact 126 | . 27 10 51 24 9 . 3 2 . . Slashing . | . . . . . . . . . . . Piercing 2 | . . . . . . . . . . 2 Sneak Attacks 40 | . 5 4 12 7 8 . 1 . 3 . Combat Hostiles . | . . . . . . . . . . . Follow-up Attacks . | . . . . . . . . . . . Damage Inflicted 10861 | 155 1058 346 2630 3646 2062 . 648 . . 316 Guns 990 | 144 51 . 390 405 . . . . . . Cannons 924 | . . . . 21 698 . 205 . . . Explosions 3549 | . 124 . 286 2034 504 . 327 . . 274 Melee 5387 | . 883 346 1954 1186 860 . 116 . . 42 Ramming 11 | 11 . . . . . . . . . . Kinetic 156 | 81 51 . 10 14 . . . . . . Thermal 1045 | 63 . . 29 50 698 . 205 . . . Explosive 3491 | . 124 . 257 2005 504 . 327 . . 274 Electromagnetic 771 | . . . 380 391 . . . . . . Impact 5345 | . 883 346 1954 1186 860 . 116 . . . Slashing . | . . . . . . . . . . . Piercing 42 | . . . . . . . . . . 42 Highest Corruption 6 | . . . . . . . 6 6 6 . Average Corruption 6 | . . . . . . . 6 6 6 . Corruption Purged . | . . . . . . . . . . . Corruption Blocked . | . . . . . . . . . . . Effects 36 | . . . . . . . 27 7 2 . Message Errors 7 | . . . . . . . 6 1 . . Matter Fused 12 | . . . . . . . 11 1 . . Heat Flow Errors 7 | . . . . . . . 2 3 2 . Energy Discharges 6 | . . . . . . . 4 2 . . Data Loss (major) 3 | . . . . . . . 3 . . . Alerts 1 | . . . . . . . 1 . . . Overload Shots . | . . . . . . . . . . . Overflow Damage 1968 | . 233 31 611 477 597 . 8 . . 11 Projectiles 122 | . . . 11 . 111 . . . . . Explosions 77 | . 7 . . 48 7 . 4 . . 11 Melee 1769 | . 226 31 600 429 479 . 4 . . . Knockbacks 19 | 1 6 1 4 1 5 . 1 . . . Impact 17 | 1 6 1 3 1 4 . 1 . . . Kinetic . | . . . . . . . . . . . Secondary 2 | . . . 1 . 1 . . . . . Self-Inflicted Damage 637 | . 13 . 83 393 . . 57 . . 91 Shots 16 | . 1 . 2 9 . . 2 . . 2 Rammed . | . . . . . . . . . . . Targets Rammed 1 | 1 . . . . . . . . . . Kicked 1 | 1 . . . . . . . . . . Crushed . | . . . . . . . . . . . Highest Temperature 298 | 72 . 2 235 48 252 . 298 254 225 29 Average Temperature 62 | 28 . 2 31 13 78 . 128 103 101 14 Received Heat Transfer 1396 | . 135 90 309 228 46 . 153 99 . 336 Siege Activations . | . . . . . . . . . . . Martial Activations . | . . . . . . . . . . . Shielding Activations . | . . . . . . . . . . . Robots Disrupted . | . . . . . . . . . . . Combat Hostiles . | . . . . . . . . . . . Robots Corrupted 26 | . 4 1 7 9 4 . 1 . . . Combat Hostiles 8 | . 2 . 1 5 . . . . . . Parts Fried 49 | . 7 1 19 14 8 . . . . . Impact Corruptions 63 | . 11 1 21 16 13 . 1 . . . Robots Melted 2 | . . . . . 2 . . . . . Combat Hostiles 1 | . . . . . 1 . . . . . Parts Melted 2 | . . . 1 . 1 . . . . . Heat Transferred 1863 | 259 . . . 87 1184 . 333 . . . Parts Sabotaged . | . . . . . . . . . . . Parts Stolen . | . . . . . . . . . . . Parts Stripped . | . . . . . . . . . . . Power Chain Reactions 2 | . . . 1 1 . . . . . . Alert | -11 -10 -10 -9 -9 -9 -7 -7 -7 -7 -7 ------- Run | Yrd Mat Min Mat Sto Rec Fac Low Low Zio Dee Maximum Alert Level 3 | . . . 1 3 1 1 . . . . Low Security (%) 52 | 100 100 100 62 18 6 . . . . . Level 1 38 | . . . 37 17 93 100 . . . . Level 2 3 | . . . . 21 . . . . . . Level 3 6 | . . . . 42 . . . . . . Level 4 . | . . . . . . . . . . . Level 5 . | . . . . . . . . . . . High Security . | . . . . . . . . . . . Max Security . | . . . . . . . . . . . Peak Influence 750 | 5 178 55 277 750 312 349 . . . . Initial 349 | . . 55 . 98 287 349 . . . . Average 194 | . 81 5 136 528 244 314 . . . . Influence Increases 3421 | 15 401 65 758 1106 555 250 121 150 . . Destroy 0b10 Robot/C 1660 | . 200 40 420 640 260 . 100 . . . Destroy 0b10 Robot/NC 275 | 15 20 15 75 65 85 . . . . . Destroy Leader 346 | . 30 10 136 160 . . 10 . . . Allied During Kill 78 | . . . 25 30 12 . 11 . . . Successful Hack 101 | . 22 . 17 31 31 . . . . . Select Force Hacks 150 | . . . . . 150 . . . . . Disable Machine 75 | . 15 . . 60 . . . . . . Destroy Structure 126 | . 9 . 40 75 2 . . . . . Advance Influence 250 | . . . . . . 250 . . . . Lose Combat Pursuer 360 | . 105 . 45 45 15 . . 150 . . Influence Decreases 3421 | 15 259 207 523 603 1055 209 400 50 100 . Entered New Map 1018 | . . 87 . 137 451 139 104 . 100 . Time Decay 2118 | 15 254 120 453 386 534 70 246 40 . . Lost Part 140 | . . . 10 80 30 . 10 10 . . Lost Ally 145 | . 5 . 60 . 40 . 40 . . . Squads Dispatched 14 | . 3 . 2 7 . 1 . 1 . . Investigation 4 | . 2 . 1 . . 1 . . . . Extermination . | . . . . . . . . . . . Reinforcement 3 | . 1 . 1 1 . . . . . . Assault 4 | . . . . 3 . . . 1 . . Garrison 3 | . . . . 3 . . . . . . Intercept . | . . . . . . . . . . . Searches Triggered . | . . . . . . . . . . . Construction Impeded . | . . . . . . . . . . . Haulers Reinforced . | . . . . . . . . . . . Active Scanning Responses . | . . . . . . . . . . . Cargo Convoy Interrupts . | . . . . . . . . . . . Stealth | -11 -10 -10 -9 -9 -9 -7 -7 -7 -7 -7 --------- Run | Yrd Mat Min Mat Sto Rec Fac Low Low Zio Dee Distress Signals 13 | . 1 . 5 6 1 . . . . . Communications Jammed . | . . . . . . . . . . . Distress Signals . | . . . . . . . . . . . Times Spotted 160 | . 22 2 40 45 15 . 9 15 . 12 Peak Tracking Total 10 | . 7 2 6 10 6 . 4 8 . 9 Tactical Retreats 13 | . 3 . 3 2 1 . . 3 . 1 Traps | -11 -10 -10 -9 -9 -9 -7 -7 -7 -7 -7 ------- Run | Yrd Mat Min Mat Sto Rec Fac Low Low Zio Dee Traps Triggered 9 | . 2 1 2 3 . 1 . . . . Indirectly . | . . . . . . . . . . . Trap Hack Attempts . | . . . . . . . . . . . Triggered . | . . . . . . . . . . . Disarmed . | . . . . . . . . . . . Reprogrammed . | . . . . . . . . . . . Reused . | . . . . . . . . . . . Traps Extracted . | . . . . . . . . . . . Installed . | . . . . . . . . . . . Triggered . | . . . . . . . . . . . Machines | -11 -10 -10 -9 -9 -9 -7 -7 -7 -7 -7 ---------- Run | Yrd Mat Min Mat Sto Rec Fac Low Low Zio Dee Machines Disabled 8 | . 1 . . 4 . . . . 3 . Max in Single Turn 2 | . 1 . . 2 . . . . 1 . Machines Repaired . | . . . . . . . . . . . Machines Dismantled 3 | . . . . . . . . . 3 . Machines Sabotaged . | . . . . . . . . . . . Overloaded Fab Kills . | . . . . . . . . . . . Hacking | -11 -10 -10 -9 -9 -9 -7 -7 -7 -7 -7 --------- Run | Yrd Mat Min Mat Sto Rec Fac Low Low Zio Dee Machines Accessed 36 | . 4 2 9 8 10 3 . . . . Terminals 20 | . 2 . 6 6 5 1 . . . . Fabricators . | . . . . . . . . . . . Repair Stations 2 | . . . . 1 . 1 . . . . Recycling Units 9 | . 2 . 1 1 5 . . . . . Scanalyzers 3 | . . . 2 . . 1 . . . . Garrison Access . | . . . . . . . . . . . Total Hacks 105 | . 13 2 35 20 24 11 . . . . Successful 58 | . 6 2 21 11 15 3 . . . . Failed 45 | . 7 . 13 9 9 7 . . . . Catastrophic 7 | . 1 . 3 1 1 1 . . . . Database Lockouts 2 | . . . 1 . . 1 . . . . Manual 56 | . 10 . 10 11 20 5 . . . . Terminals 62 | . 9 . 19 13 19 2 . . . . Fabricators . | . . . . . . . . . . . Repair Stations 6 | . . . . 3 . 3 . . . . Recycling Units 15 | . 4 . 2 4 5 . . . . . Scanalyzers 20 | . . . 14 . . 6 . . . . Garrison Access . | . . . . . . . . . . . Terminal Hacks 15 | . 2 2 5 4 2 . . . . . Part Schematic 2 | . . . . 2 . . . . . . Robot Schematic 1 | . . . . . 1 . . . . . Robot Analysis 1 | . . . 1 . . . . . . . Prototype ID Bank 2 | . . . 1 . 1 . . . . . Open Door 4 | . . 2 . 2 . . . . . . Level Access Points 1 | . . . 1 . . . . . . . Branch Access Points 1 | . 1 . . . . . . . . . Terminal Index 1 | . 1 . . . . . . . . . Locate Traps 2 | . . . 2 . . . . . . . Fabricator Hacks . | . . . . . . . . . . . Repair Station Hacks 3 | . . . . 3 . . . . . . Scan Component 1 | . . . . 1 . . . . . . Repair 1 | . . . . 1 . . . . . . Refit 1 | . . . . 1 . . . . . . Recycling Unit Hacks . | . . . . . . . . . . . Scanalyzer 15 | . . . 12 . . 3 . . . . Insert Component 3 | . . . 3 . . . . . . . Analyze 3 | . . . 3 . . . . . . . Retrieve Study 9 | . . . 6 . . 3 . . . . Garrison Access Hacks . | . . . . . . . . . . . Unauthorized Hacks 25 | . 4 . 4 4 13 . . . . . Terminals 14 | . 2 . 2 2 8 . . . . . Assimilate 1 | . 1 . . . . . . . . . Botnet 5 | . 1 . 1 1 2 . . . . . Operators 3 | . . . 1 1 1 . . . . . Skim 5 | . . . . . 5 . . . . . Fabricators . | . . . . . . . . . . . Repair Stations . | . . . . . . . . . . . Recycling Units 11 | . 2 . 2 2 5 . . . . . Recyclers 3 | . 1 . 1 1 . . . . . . Mask 3 | . 1 . 1 1 . . . . . . Tunnel 5 | . . . . . 5 . . . . . Scanalyzers . | . . . . . . . . . . . Garrison Access . | . . . . . . . . . . . Data Cores Recovered . | . . . . . . . . . . . Used . | . . . . . . . . . . . Hacking Detections 26 | . 4 . 8 6 5 3 . . . . Full Trace Events 1 | . . . 1 . . . . . . . Feedback Events . | . . . . . . . . . . . Feedback Blocked . | . . . . . . . . . . . Robot Schematics Acquired 1 | . . . . . 1 . . . . . Robots Built . | . . . . . . . . . . . Authchips . | . . . . . . . . . . . Time . | . . . . . . . . . . . Total Robot Build Rating . | . . . . . . . . . . . Part Schematics Acquired 4 | . . . 2 2 . . . . . . Parts Built . | . . . . . . . . . . . Authchips . | . . . . . . . . . . . Time . | . . . . . . . . . . . Total Part Build Rating . | . . . . . . . . . . . Part Studies Acquired 8 | . . . 5 . . 3 . . . . Parts Repaired 1 | . . . . 1 . . . . . . Time 32 | . . . . 32 . . . . . . Parts Recycled . | . . . . . . . . . . . Recycled Matter . | . . . . . . . . . . . Retrieved Matter . | . . . . . . . . . . . Retrieved Components . | . . . . . . . . . . . Parts Scanalyzed 2 | . . . 2 . . . . . . . Part Schematics Acquired 2 | . . . 2 . . . . . . . Parts Damaged . | . . . . . . . . . . . Bothacking | -11 -10 -10 -9 -9 -9 -7 -7 -7 -7 -7 ------------ Run | Yrd Mat Min Mat Sto Rec Fac Low Low Zio Dee Used RIF Installer . | . . . . . . . . . . . Robots Hacked 3 | . . . . . . . . . 3 . Non-combat 1 | . . . . . . . . . 1 . Combat 2 | . . . . . . . . . 2 . Robot Hacks Applied 3 | . . . . . . . . . 3 . parse_system 3 | . . . . . . . . . 3 . Relay Couplers Released . | . . . . . . . . . . . Fabnet Peak Effective % . | . . . . . . . . . . . Robots Rewired 13 | . . . . . 13 . . . . . Allies Hacked . | . . . . . . . . . . . Hacks Repelled . | . . . . . . . . . . . Allies | -11 -10 -10 -9 -9 -9 -7 -7 -7 -7 -7 -------- Run | Yrd Mat Min Mat Sto Rec Fac Low Low Zio Dee Total Allies 19 | . 1 3 . 2 13 . . . . . Largest Group 10 | . 1 3 3 2 10 4 4 . . . Highest-Rated Group 142 | . 10 40 40 62 142 63 63 . . . Highest-Rated Ally 31 | . 10 16 16 31 27 18 18 . . . Total Orders 4 | . . . . . 4 . . . . . STAY 1 | . . . . . 1 . . . . . FOLLOW 3 | . . . . . 3 . . . . . Ally Attacks 86 | . . . 31 39 5 . 11 . . . Total Damage 1118 | . . . 351 419 60 . 288 . . . Kills 13 | . . . 5 5 2 . 1 . . . Allies Corrupted 1 | . . . . . 1 . . . . . Allies Melted . | . . . . . . . . . . . Intel | -11 -10 -10 -9 -9 -9 -7 -7 -7 -7 -7 ------- Run | Yrd Mat Min Mat Sto Rec Fac Low Low Zio Dee Active Infowar (turns) 1068 | 35 150 . . . . 153 730 . . . Seismic 1068 | 35 150 . . . . 153 730 . . . Robot Analysis Total 1 | . . . 1 . . . . . . . Derelict Logs Recovered 8 | . . 3 . . . . 2 1 2 . Drone Launches 1 | . . . . . . . 1 . . . Drone Recoveries 1 | . . . . . . . 1 . . . Exploration | -11 -10 -10 -9 -9 -9 -7 -7 -7 -7 -7 ------------- Run | Yrd Mat Min Mat Sto Rec Fac Low Low Zio Dee Turns Passed 10870 | 116 709 1058 1675 916 1502 158 904 290 3420 122 Spaces Moved 6414 | 52 430 538 1106 497 846 128 570 428 1612 207 Core 1361 | 4 . . . . . . 165 428 557 207 Treads 494 | . . . . . . . . . 494 . Legs 3998 | 48 430 538 1106 497 846 128 405 . . . Wheels . | . . . . . . . . . . . Hover 561 | . . . . . . . . . 561 . Flight . | . . . . . . . . . . . Fastest Speed 50 | 50 120 190 108 105 108 108 50 50 50 50 Average Speed 119 | 117 134 190 114 125 141 118 140 66 98 50 Slowest Speed 190 | 120 190 190 120 190 180 178 182 100 163 50 Overloaded Moves . | . . . . . . . . . . . Propulsion Burnouts . | . . . . . . . . . . . Robots Hopped . | . . . . . . . . . . . Potential Cave-ins . | . . . . . . . . . . . Cave-ins Triggered . | . . . . . . . . . . . Exploration Rate (%) 63 | 4 67 93 85 80 91 4 67 63 85 55 Regions Visited 10 Branch Regions 7 Pre-discovered Areas 9 | . . 1 . . 5 . 2 . 1 . Known Exits Taken 4 | . 1 1 1 . 1 . . . . . Unknown Exits Taken 6 | 1 . . . 1 . 1 1 1 1 . Scrap Searched 8 | . . 1 . . . . 2 2 3 . Spaces Dug 4 | . . . 1 . . . 2 1 . . Terrain Destroyed 175 | . 8 . 41 67 . . 34 1 . 24 Melee 4 | . . . 1 . . . 2 1 . . Projectile . | . . . . . . . . . . . AOE 171 | . 8 . 40 67 . . 32 . . 24 Terrain Rammed . | . . . . . . . . . . . Walls Destroyed . | . . . . . . . . . . . Machines Disabled . | . . . . . . . . . . . Actions | -11 -10 -10 -9 -9 -9 -7 -7 -7 -7 -7 --------- Run | Yrd Mat Min Mat Sto Rec Fac Low Low Zio Dee Total 9168 | 76 509 555 1391 720 1103 135 646 432 3381 220 Wait 2050 | 2 21 . 120 89 58 . 37 . 1717 6 Move 6404 | 51 429 537 1105 496 845 127 569 427 1611 207 Hop . | . . . . . . . . . . . Pick Up 50 | 1 11 4 14 12 4 3 . . 1 . Fast Attach 32 | 7 1 . 3 7 1 . 3 1 9 . Attach 16 | . 1 . 3 6 3 2 . . . 1 Detach 13 | . 1 . . 5 1 . 2 1 2 1 Swap 64 | . 6 4 26 14 5 1 4 . 4 . Drop 68 | . 5 . 29 14 4 2 6 1 7 . Fire 171 | 14 7 . 40 44 41 . 22 . . 3 Melee 131 | . 27 10 51 24 9 . 3 2 3 2 Ram . | . . . . . . . . . . . Kick 1 | 1 . . . . . . . . . . Crush . | . . . . . . . . . . . Escape Stasis 9 | . . . . 9 . . . . . . Rewire 132 | . . . . . 132 . . . . . Trap . | . . . . . . . . . . . Miscellaneous 27 | . . . . . . . . . 27 . Route ------- -11/Scrapyard -10/Materials (discovered 5 exits: *Mat x2 / *Min x2 / [*Sub]) -10/Mines (discovered 3 exits: *Mat x2 / [*Sub]) -9/Materials (discovered 5 exits: *Mat x3 / [*Min] / *Sto) -9/Storage (discovered 2 exits: *Mat / *Rec) -9/Recycling -7/Factory -7/Lower Caves -7/Lower Caves -7/Zion (discovered 2 exits: [*Dee] / [*Pro]) -7/Deep Caves History --------- Turn | Location | Event 4 | -11/Scrapyard | Discovered new exit (range 16) 117 | -11/Scrapyard | Entered Materials 163 | -10/Materials | Discovered new exit (range 6) 308 | -10/Materials | Build established: Mutant 320 | -10/Materials | Discovered new exit (range 3) 322 | -10/Materials | Discovered new exit (range 8) 422 | -10/Materials | Identified exit to Mines 559 | -10/Materials | Discovered new exit (range 12) 567 | -10/Materials | Discovered new exit (range 10) 826 | -10/Materials | Entered Mines 861 | -10/Mines | Discovered new exit (range 10) 920 | -10/Mines | Identified exit to Materials 934 | -10/Mines | Met a Derelict who couldn't figure out how to use a Trap Extractor 1032 | -10/Mines | Discovered exit to Materials (range 11) 1175 | -10/Mines | Learned location of Zion (-7) 1496 | -10/Mines | A weapon hastily lodged in a ceiling crevice suddenly fell to the ground 1592 | -10/Mines | Assisted by bots powering up and referring to "LRC-V3" 1715 | -10/Mines | Found the Drone Emporium 1722 | -10/Mines | Found Prototype Device 1722 | -10/Mines | Identified Sensor Drone Bay 1884 | -10/Mines | Entered Materials 1884 | -9/Materials | Accompanied by 3 allies 1884 | -9/Materials | Evolved 2 slots: Propulsion x2 1885 | -9/Materials | Identified exit to Storage 2135 | -9/Materials | Discovered new exit (range 6) 2306 | -9/Materials | Lost 3 allies 2335 | -9/Materials | Identified exit to Materials 2374 | -9/Materials | Central database locked down 2447 | -9/Materials | Discovered new exit (range 11) 2709 | -9/Materials | Build established: Scavenger-Mutant 3281 | -9/Materials | Build established: Mutant 3559 | -9/Materials | Entered Storage 3644 | -9/Storage | Met a pair of Derelict thieves 3768 | -9/Storage | Destroyed 8 combat bots 3768 | -9/Storage | Lost 3 parts (2n1w) 3878 | -9/Storage | Garrison activated, responded to threat 3916 | -9/Storage | Destroyed 10 combat bots 3975 | -9/Storage | Core integrity fell below 50% 4244 | -9/Storage | Build established: Scavenger-Mutant 4303 | -9/Storage | Discovered exit to Materials (range 13) 4359 | -9/Storage | First assault squad dispatched 4363 | -9/Storage | Repaired Hrd. Light Armor Plating 4468 | -9/Storage | Used back door to open Recycling access 4468 | -9/Storage | Discovered new exit (range 5) 4475 | -9/Storage | Entered Recycling 5281 | -9/Recycling | Learned Materials security intel 5343 | -9/Recycling | Learned Storage security intel 5395 | -9/Recycling | Identified exit to Factory 5439 | -9/Recycling | Learned Storage security intel 5473 | -9/Recycling | Learned 2 Materials zone layouts 5784 | -9/Recycling | Core integrity fell below 20% 5895 | -9/Recycling | Scanned before Scraplab entrance 5950 | -9/Recycling | Build established: Commander-Mutant 5977 | -9/Recycling | Entered Factory 5977 | -7/Factory | Accompanied by 4 allies 5977 | -7/Factory | Evolved 4 slots: Propulsion x1, Utility x3 6076 | -7/Factory | Discovered new exit (range 15) 6117 | -7/Factory | Central database locked down 6135 | -7/Factory | Entered Lower Caves 6135 | -7/Lower Caves | Accompanied by 4 allies 6139 | -7/Lower Caves | Encountered a Warlord checkpoint 6187 | -7/Lower Caves | Attracted the attention of an 0b10 checkpoint 6284 | -7/Lower Caves | Build established: Scavenger-Mutant 6864 | -7/Lower Caves | Spotted B-75 Beast 6965 | -7/Lower Caves | Lost 4 parts (4n) 7036 | -7/Lower Caves | Discovered new exit (range 6) 7039 | -7/Lower Caves | Entered another Lower Caves area 7197 | -7/Lower Caves | Build established: Mutant 7268 | -7/Lower Caves | Attracted the attention of an 0b10 outpost 7324 | -7/Lower Caves | Discovered new exit (range 11) 7329 | -7/Lower Caves | Entered Zion 7356 | -7/Zion | Discovered new exit (range 15) 7394 | -7/Zion | System corruption cleaned by Quarantine Array 7471 | -7/Zion | Received a visual enhancement algorithm 7605 | -7/Zion | Found CR-A16's Pointy Stick 7915 | -7/Zion | Met Imprinter 7964 | -7/Zion | Build established: Derelict-Mutant 8460 | -7/Zion | Discovered new exit (range 5) 8463 | -7/Zion | Saw the warning signs outside the Deep Caves entrance 9101 | -7/Zion | Build established: Mutant 10749 | -7/Zion | Entered Deep Caves 10804 | -7/Deep Caves | Z-Facility disabled 10809 | -7/Deep Caves | Core integrity fell below 50% 10811 | -7/Deep Caves | Attacked by Z-Imprinter 10857 | -7/Deep Caves | Spotted Golem 10866 | -7/Deep Caves | Core integrity fell below 20% 10871 | -7/Deep Caves | Destroyed by Golem with Assembled Focal Cannon Last Messages --------------- 10353_ WR-XY3(z) examines a few pieces of the Twisted Machinery. 10709_ BW-MO6(z) pokes at the Twisted Machinery. LOCATION=UNKNOWN GOAL=ESCAPE 10792_ NEW_ZION: Z-Facility proximity alert. 10804_ Z-Facility disabled. Z-Imprinter: GET AWAY FROM HERE! I've worked too hard for our future just to have you ruin everything! 10819_ Destroyed Asb. F-torch. 10820_ as-97321 destroyed. 10822_ Destroyed Asb. Hover Unit. 10822_ as-98831 destroyed. 10823_ Carbon-fiber Leg destroyed. 10825_ The unstable cave ceiling collapses. 10834_ Arm. Treads destroyed. 10859_ Golem: "DSI9AT1D G8OHIBQ29FWG 26R186 QD12WHW8W33 TDK1 81FTS" 10862_ Backup Propulsion III destroyed. 10865_ Spk. Medium Treads destroyed. 10866_ Knocked back. 10870_ as-91460 destroyed. Map ----- +----------------------------------------------------+ | ???????????????????????????????????????????????? | | ???????????????????????????????????????????????? | | ???????????????????????????????????????????????? | | ???????????????????????????????????????????????? | | ???????????????????????????????????????????????? | | ????????????????????????? ??????????????###### | | ?????????????????????? ?????????????## # | | ???????????????????? ?????????##### | | ?????????????????? #????????? | | ??????????????? ! * #?????????? | | ????????????? ! #???????????# | | ??????????? b #???????????# | | ??????????? * ##??????????# | | ?????????? ! #?????????## | | ?????????? g #????????## | | ????????? M ]] M #????????# | | ????????? / / ########## | | ????????? / # | | ????????""" ## | | ????????" ] #? | | ?????????" b G ############ #? | | ????????" #??????????# #? | | ?????????" I ##??????????# # | | ????????" # # #???????????# ## | | ????????" #### #;%## ##???????????## ###? | | ????????""" ???????# ?#@####?????????????####??? | | ???????????????????#??# #??????????????????????? | | ???????????????????????#???????????????????????? | | | | | | | | | | | | | | | | | | | | | | | | | | | | | | | | | | | | | | | | | | | | | +----------------------------------------------------+ Best States ------------- Heat Dissipation 34 Energy Generation 16 Energy Capacity 290 Matter Stores 300 Matter Capacity 300 Sight Range 16 Terrain Scan Density 10 Armor Coverage 300 Resistance: TH 10 Power Shielding 66 Evasion (%) 55 Recoil Reduction 3 Item Schematics ----------------- Seismic Detector | -9/Materials | Scanalyzed Mak. Hammer | -9/Materials | Scanalyzed EM Shotgun | -9/Storage | Hacked Plasma Cutter | -9/Storage | Hacked Robot Schematics ------------------ M-13 Machinist | -9/Recycling | Hacked Fabricated ------------ Nothing Repaired ---------- Hrd. Light Armor Plating | 56% | -9/Storage Studied --------- Hvy. Hammer | -9/Materials | Hacked Lgt. Ion Engine | -9/Materials | Hacked Aluminum Leg | -9/Materials | Hacked Grenade Launcher | -9/Materials | Hacked Shotgun | -9/Materials | Hacked Com. Wheel | -7/Factory | Hacked Mni. Grenade Launcher | -7/Factory | Hacked Hvy. Mace | -7/Factory | Hacked Alien Tech Used ----------------- None Achievements -------------- Physics Hates This One Trick Challenges ------------ None Game ------ Seed ShockboltTimingImpeller Manual? 0 Play Time 01:43:24 Cumulative 194.3 hours Start 2026.09.10 @ 17:54:31 End 2026.09.24 @ 12:33:36 Sessions 9 Manual Loads 0 Difficulty Rogue Special Mode None Game No. 104 Rogue 100 Adventurer 2 Explorer 2 Win Type - Total 2 Types 1/0/1/0/0/0/0/0/0/0 Lore% 67 Gallery% 62 Achievement% 43 Wizard Run 0 Options --------- Layout 0 ASCII 0 Keyboard 1 Movement Arrows Keybinds 0 Fullscreen 2 Font 18/Terminus Map View 76x50 Zoom Use 0% Tactical HUD 1 Map Filters NONE Filters NONE Steam 1 RUN: 78f1219a-443b-43bc-b8a5-72adcedc01cd